Cogmind - Beta 16 @@@ ROGUE MODE // 2025.12.18 @ 23:09:30 Player: 0_0 Result: Destroyed by P-60 Hacker with Shock Rifle Performance ------------- Evolutions (3) 1500 Regions Visited (6) 1200 Robots Destroyed (33) 165 Value Destroyed (798) 798 Prototype IDs (23) 460 Alien Tech Used (0) 0 Bonus (532) 532 TOTAL SCORE: 4655 Bonus ------- Follower Combat Kills 232 Aligned with FarCom 300 Cogmind --------- Core Integrity 0/700 Matter 300/300 Energy 100/100 System Corruption 23% Temperature Cool (0) Movement Core (50) Location -7/Factory Parts ------- > --- POWER (3) -------- (None) > --- PROPULSION (3) --- (None) > --- UTILITY (4) ------ (None) > --- WEAPON (3) ------- (None) > --- INVENTORY (5) ---- Scrap Suit Experimental Sensor Array Melee Analysis Suite Peak State ------------ > --- POWER ------------ Light Ion Engine Light Deuterium Engine Light Nuclear Core > --- PROPULSION ------- Aluminum Leg Aluminum Leg Aluminum Leg > --- UTILITY ---------- Small Storage Unit Signal Interpreter Cloak of Protection Hacking Suite > --- WEAPON ----------- EM Pulse Cannon Improved EM Pulse Cannon Gauss Cannon > --- INVENTORY -------- Scrap Suit Experimental Sensor Array EM Pulse Cannon Light Assault Rifle Light Assault Rifle [Rating: 36] Favorites ----------- Power Ion Engine Engine Ion Engine Power Core Light Nuclear Core Propulsion Aluminum Leg Leg Aluminum Leg Wheel Compact Wheel Hover Unit Gravmag System Utility Small Storage Unit Device Cloak of Protection Storage Small Storage Unit Processor Targeting Computer Hackware Hacking Suite Weapon Light Assault Rifle Energy Cannon Improved EM Pulse Cannon Ballistic Gun Light Assault Rifle Ballistic Cannon Gauss Cannon Launcher Grenade Launcher Build | -11 -10 -10 -10 -9 -8 -7 ------- Run | Yrd Mat Min Exi Min Mat Fac Slots Evolved 6 | . . . . . 4 2 Power 2 | . . . . . 1 1 Propulsion 1 | . . . . . 1 . Utility 2 | . . . . . 2 . Weapon 1 | . . . . . . 1 Parts Attached 30 | 6 2 5 . 5 6 6 Power 7 | 1 . . . 2 2 2 Engine 4 | 1 . . . 1 2 . Core 3 | . . . . 1 . 2 Reactor . | . . . . . . . Propulsion 8 | 2 . 3 . 1 1 1 Treads . | . . . . . . . Leg 5 | . . 3 . 1 1 . Wheel 2 | 2 . . . . . . Hover 1 | . . . . . . 1 Flight . | . . . . . . . Utility 7 | 1 2 . . . 3 1 Device 2 | . . . . . 1 1 Storage 2 | 1 1 . . . . . Processor 2 | . 1 . . . 1 . Hackware 1 | . . . . . 1 . Protection . | . . . . . . . Artifact . | . . . . . . . Weapon 8 | 2 . 2 . 2 . 2 Energy Gun . | . . . . . . . Energy Cannon 3 | . . . . 1 . 2 Ballistic Gun 3 | 2 . 1 . . . . Ballistic Cannon 1 | . . . . 1 . . Launcher 1 | . . 1 . . . . Special Weapon . | . . . . . . . Impact Weapon . | . . . . . . . Slashing Weapon . | . . . . . . . Piercing Weapon . | . . . . . . . Special Melee Weapon . | . . . . . . . Unidentified Prototypes . | . . . . . . . Corrupted Parts 2 | . . . . . 1 1 System Corruption 2 | . . . . . 1 1 Parts Lost 24 | . . 1 . 3 . 20 Power 6 | . . . . 1 . 5 Propulsion 6 | . . 1 . 1 . 4 Utility 5 | . . . . . . 5 Weapon 7 | . . . . 1 . 6 Highest Loss Streak 12 | . . 1 . 1 . 12 To Critical Strikes 2 | . . . . . . 2 Average Backups 6 | 1 4 7 7 6 6 4 Power 1 | . 1 2 2 1 . . Propulsion . | . 2 . . . . . Utility 2 | . . 2 3 3 2 2 Weapon 1 | . . 1 1 1 3 1 Tool/Special . | . . . . . . . Unused Backups 10 | . . 4 . 2 1 3 Power 2 | . . 2 . . . . Propulsion . | . . . . . . . Utility 5 | . . 1 . 1 . 3 Weapon 2 | . . . . 1 1 . Tool/Special 1 | . . 1 . . . . Average Slot Usage (%) 94 | . 98 99 100 99 87 77 Engine 11 | . 14 14 14 10 9 9 Core 3 | . . . . 3 9 8 Leg 23 | . . 27 28 27 19 13 Wheel 1 | . 28 . . . . . Device 1 | . . . . . 8 6 Storage 12 | . 24 14 14 14 9 6 Processor 11 | . 2 14 14 14 9 6 Hackware 1 | . . . . . 4 6 Energy Cannon 3 | . . . . 4 9 9 Ballistic Gun 18 | . 28 27 28 19 . 2 Ballistic Cannon 2 | . . . . 4 9 3 Peak Build Rating 36 | 6 7 9 10 17 32 36 Average Rating 14 | 4 6 8 9 12 28 28 On Entrance 11 | . 6 7 9 10 17 32 Avg Prop Armor Cover (%) . | . . . . . . . Naked Turns 24 | . . . . . . 24 Heaviest Build 46 | 12 15 12 12 24 37 46 Greatest Support 32 | 32 32 20 20 20 30 30 Greatest Overweight (x) 9 | 1 . . . 2 1 9 Average Overweight (x) . | . . . . . 1 1 Largest Inventory Capacity 8 | 8 8 8 8 8 8 8 Average Capacity 7 | 6 7 8 8 8 8 7 Most Carried 8 | 4 7 8 8 8 8 7 Average Carried 7 | 2 5 7 7 7 7 5 Final Capacity 8 | 8 8 8 8 8 8 5 Final Carried 8 | 3 7 8 8 8 8 4 Class Distribution -------------------- 84% | Mutant 9% | Scavenger-Skirmisher 6% | Scavenger-Mutant Dominant Class ---------------- Mutant | -10/Materials Mutant | -10/Mines Mutant | -10/Exiles Mutant | -9/Mines Scavenger-Mutant | -8/Materials Scavenger-Skirmisher | -7/Factory Resources | -11 -10 -10 -10 -9 -8 -7 ----------- Run | Yrd Mat Min Exi Min Mat Fac Matter Collected 709 | 201 191 114 . 121 57 25 Remotely . | . . . . . . . Salvage Created 771 | . 82 229 . 263 95 102 Parts 63 | . 4 16 . 31 2 10 Haulers Intercepted . | . . . . . . . Recyclers Shooed . | . . . . . . . Parts Field Recycled . | . . . . . . . Retrieved Matter . | . . . . . . . Parts Self-Destructed . | . . . . . . . Prevented . | . . . . . . . Parts Restored . | . . . . . . . Kills | -11 -10 -10 -10 -9 -8 -7 ------- Run | Yrd Mat Min Exi Min Mat Fac Combat Hostiles Destroyed 30 | . 2 11 . 13 1 3 Guns 17 | . 2 8 . 6 . 1 Cannons 9 | . . . . 7 . 2 AOE 4 | . . 3 . . 1 . Classes Destroyed 7 | . 1 1 . 3 1 1 Worker 1 | . . . . 1 . . Tunneler 1 | . . . . 1 . . Watcher 1 | . . . . . 1 . Swarmer 19 | . . 7 . 10 . 2 Grunt 9 | . 2 4 . 2 1 . Brawler 1 | . . . . 1 . . Programmer 1 | . . . . . . 1 Best Kill Streak 5 | . 2 5 . 4 1 1 Combat Bots Only 5 | . 2 5 . 3 1 1 Max Kills in Single Turn 2 | . 1 2 . 2 1 1 Gunslinging . | . . . . . . . Exploded 2 | . . 2 . . 1 . Melee . | . . . . . . . Uniques/NPCs Destroyed . | . . . . . . . Combat | -11 -10 -10 -10 -9 -8 -7 -------- Run | Yrd Mat Min Exi Min Mat Fac Hostile Shots Fired 301 | . 23 37 . 56 2 183 Missed 95 | . 9 12 . 16 . 58 Hits 206 | . 14 25 . 40 2 125 Projectile 206 | . 14 25 . 40 2 125 Critical Strikes 7 | . . . . . . 7 Part Disruptions 1 | . . . . . . 1 Damage Taken 2854 | . 138 274 . 389 28 2025 Core 893 | . 57 70 . 65 . 701 Absorbed by Shields . | . . . . . . . Core Remaining (%) 74 | 100 . . . 23 100 . Volleys Fired 83 | . 6 21 . 31 6 19 Largest 3 | . 2 2 . 2 2 3 Hottest 152 | . 40 50 . 109 109 152 Shots Fired 152 | . 12 42 . 61 12 25 Gun 105 | . 12 39 . 39 . 15 Cannon 44 | . . . . 22 12 10 Launcher 3 | . . 3 . . . . Special . | . . . . . . . Kinetic 121 | . 12 39 . 49 6 15 Thermal . | . . . . . . . Explosive 3 | . . 3 . . . . Electromagnetic 28 | . . . . 12 6 10 Robot Hit Streak 15 | . 7 15 . 11 5 8 Robot Miss Streak 3 | . 1 2 . 3 1 2 Penetration Max . | . . . . . . . Secondary Targets 1 | . . 1 . . . . Max Gunslinging Chain 1 | . . 1 . . . . Shots Hit Robots 100 | . 9 33 . 33 9 16 Core Hits 53 | . 4 21 . 16 2 10 Critical Kills 2 | . . 2 . . . . Critical Parts Destroyed 1 | . . 1 . . . . Critical Strikes 6 | . . 3 . 1 2 . Destroy 3 | . . 3 . . . . Blast 2 | . . . . 1 1 . Corrupt 1 | . . . . . 1 . Melee Attacks . | . . . . . . . Impact . | . . . . . . . Slashing . | . . . . . . . Piercing . | . . . . . . . Sneak Attacks . | . . . . . . . Combat Hostiles . | . . . . . . . Follow-up Attacks . | . . . . . . . Damage Inflicted 1930 | . 78 563 . 646 307 336 Guns 653 | . 78 251 . 224 . 100 Cannons 727 | . . . . 419 244 64 Explosions 375 | . . 312 . . 63 . Melee . | . . . . . . . Ramming 175 | . . . . 3 . 172 Kinetic 941 | . 78 251 . 454 58 100 Thermal 63 | . . . . . 63 . Explosive 312 | . . 312 . . . . Electromagnetic 439 | . . . . 189 186 64 Impact . | . . . . . . . Slashing . | . . . . . . . Piercing . | . . . . . . . Highest Corruption 23 | . . . . . 1 23 Average Corruption 4 | . . . . . 1 7 Corruption Purged . | . . . . . . . Corruption Blocked . | . . . . . . . Effects 20 | . . . . . 3 17 Message Errors 3 | . . . . . . 3 Matter Fused 6 | . . . . . 2 4 Heat Flow Errors 2 | . . . . . . 2 Energy Discharges 1 | . . . . . 1 . Data Loss (minor) 4 | . . . . . . 4 Data Loss (major) 2 | . . . . . . 2 Misdirections 2 | . . . . . . 2 Overload Shots . | . . . . . . . Overflow Damage 30 | . . . . 20 10 . Projectiles 30 | . . . . 20 10 . Explosions . | . . . . . . . Melee . | . . . . . . . Knockbacks 3 | . . . . 3 . . Impact . | . . . . . . . Kinetic 3 | . . . . 3 . . Secondary . | . . . . . . . Self-Inflicted Damage 72 | . . . . . . 72 Shots . | . . . . . . . Rammed 64 | . . . . . . 64 Targets Rammed 65 | . . . . 1 . 64 Kicked 1 | . . . . 1 . . Crushed . | . . . . . . . Highest Temperature 285 | . 12 25 . 285 236 188 Average Temperature 78 | . 7 12 . 94 97 76 Received Heat Transfer 225 | . 48 84 . 84 9 . Siege Activations . | . . . . . . . Martial Activations . | . . . . . . . Shielding Activations . | . . . . . . . Robots Disrupted . | . . . . . . . Combat Hostiles . | . . . . . . . Robots Corrupted . | . . . . . . . Combat Hostiles . | . . . . . . . Parts Fried . | . . . . . . . Impact Corruptions . | . . . . . . . Robots Melted . | . . . . . . . Combat Hostiles . | . . . . . . . Parts Melted 1 | . . . . . 1 . Heat Transferred 50 | . . . . . 50 . Parts Sabotaged . | . . . . . . . Parts Stolen . | . . . . . . . Parts Stripped . | . . . . . . . Power Chain Reactions 1 | . . . . . 1 . Alert | -11 -10 -10 -10 -9 -8 -7 ------- Run | Yrd Mat Min Exi Min Mat Fac Maximum Alert Level 1 | . . . . 1 . . Low Security (%) 95 | 100 100 100 . 87 100 100 Level 1 4 | . . . . 12 . . Level 2 . | . . . . . . . Level 3 . | . . . . . . . Level 4 . | . . . . . . . Level 5 . | . . . . . . . High Security . | . . . . . . . Max Security . | . . . . . . . Peak Influence 242 | . 40 194 . 242 70 150 Initial 64 | . . 7 . . 64 2 Average 61 | . 8 54 . 105 20 21 Influence Increases 1295 | . 50 277 . 634 100 234 Destroy 0b10 Robot/C 840 | . 40 220 . 460 60 60 Destroy 0b10 Robot/NC 20 | . . . . 10 10 . Destroy Leader 154 | . 10 40 . 80 4 20 Allied During Kill 50 | . . . . 48 2 . Successful Hack 10 | . . . . . 6 4 Anti-Garrison Action 150 | . . . . . . 150 Destroy Structure 26 | . . 17 . 6 3 . Lose Combat Pursuer 45 | . . . . 30 15 . Influence Decreases 1295 | . 30 297 . 468 261 239 Entered New Map 118 | . . 13 . . 102 3 Time Decay 989 | . 30 274 . 418 139 128 Lost Part 148 | . . 10 . 30 . 108 Lost Ally 40 | . . . . 20 20 . Squads Dispatched 5 | . 1 . . . . 4 Investigation . | . . . . . . . Extermination 2 | . . . . . . 2 Reinforcement 1 | . 1 . . . . . Assault 2 | . . . . . . 2 Garrison . | . . . . . . . Intercept . | . . . . . . . Searches Triggered . | . . . . . . . Construction Impeded . | . . . . . . . Haulers Reinforced . | . . . . . . . Active Scanning Responses . | . . . . . . . Cargo Convoy Interrupts . | . . . . . . . Stealth | -11 -10 -10 -10 -9 -8 -7 --------- Run | Yrd Mat Min Exi Min Mat Fac Distress Signals 3 | . 1 . . . 2 . Communications Jammed . | . . . . . . . Distress Signals . | . . . . . . . Times Spotted 62 | . 9 13 . 23 9 8 Peak Tracking Total 8 | . 8 5 . 4 2 4 Tactical Retreats 2 | . . . . 1 1 . Traps | -11 -10 -10 -10 -9 -8 -7 ------- Run | Yrd Mat Min Exi Min Mat Fac Traps Triggered . | . . . . . . . Indirectly . | . . . . . . . Trap Hack Attempts . | . . . . . . . Triggered . | . . . . . . . Disarmed . | . . . . . . . Reprogrammed . | . . . . . . . Reused . | . . . . . . . Traps Extracted . | . . . . . . . Installed . | . . . . . . . Triggered . | . . . . . . . Machines | -11 -10 -10 -10 -9 -8 -7 ---------- Run | Yrd Mat Min Exi Min Mat Fac Machines Disabled 1 | . . . . . . 1 Max in Single Turn 1 | . . . . . . 1 Garrison Access 1 | . . . . . . 1 Machines Repaired . | . . . . . . . Machines Dismantled . | . . . . . . . Machines Sabotaged . | . . . . . . . Overloaded Fab Kills . | . . . . . . . Hacking | -11 -10 -10 -10 -9 -8 -7 --------- Run | Yrd Mat Min Exi Min Mat Fac Machines Accessed 10 | . 2 . 3 2 1 2 Terminals 6 | . 2 . . 1 1 2 Fabricators . | . . . . . . . Repair Stations . | . . . . . . . Recycling Units . | . . . . . . . Scanalyzers . | . . . . . . . Garrison Access . | . . . . . . . Total Hacks 34 | . 4 . 18 5 3 4 Successful 22 | . . . 18 2 1 1 Failed 12 | . 4 . . 3 2 3 Catastrophic 5 | . 2 . . 2 . 1 Database Lockouts . | . . . . . . . Manual 8 | . . . 1 4 3 . Terminals 15 | . 4 . . 4 3 4 Fabricators . | . . . . . . . Repair Stations . | . . . . . . . Recycling Units . | . . . . . . . Scanalyzers . | . . . . . . . Garrison Access . | . . . . . . . Terminal Hacks 22 | . . . 18 2 1 1 Record 17 | . . . 17 . . . Open Door 1 | . . . . 1 . . Open DSF 1 | . . . . . . 1 Emergency Access Points 1 | . . . . 1 . . Zone Layout 1 | . . . . . 1 . Proto ID Catalog 1 | . . . 1 . . . Fabricator Hacks . | . . . . . . . Repair Station Hacks . | . . . . . . . Recycling Unit Hacks . | . . . . . . . Scanalyzer . | . . . . . . . Garrison Access Hacks . | . . . . . . . Unauthorized Hacks . | . . . . . . . Terminals . | . . . . . . . Fabricators . | . . . . . . . Repair Stations . | . . . . . . . Recycling Units . | . . . . . . . Scanalyzers . | . . . . . . . Garrison Access . | . . . . . . . Data Cores Recovered . | . . . . . . . Used . | . . . . . . . Hacking Detections 4 | . 2 . . 1 . 1 Full Trace Events 1 | . 1 . . . . . Feedback Events . | . . . . . . . Feedback Blocked . | . . . . . . . Robot Schematics Acquired . | . . . . . . . Robots Built . | . . . . . . . Authchips . | . . . . . . . Time . | . . . . . . . Total Robot Build Rating . | . . . . . . . Part Schematics Acquired . | . . . . . . . Parts Built . | . . . . . . . Authchips . | . . . . . . . Time . | . . . . . . . Total Part Build Rating . | . . . . . . . Part Studies Acquired . | . . . . . . . Parts Repaired . | . . . . . . . Time . | . . . . . . . Parts Recycled . | . . . . . . . Recycled Matter . | . . . . . . . Retrieved Matter . | . . . . . . . Retrieved Components . | . . . . . . . Parts Scanalyzed . | . . . . . . . Part Schematics Acquired . | . . . . . . . Parts Damaged . | . . . . . . . Bothacking | -11 -10 -10 -10 -9 -8 -7 ------------ Run | Yrd Mat Min Exi Min Mat Fac Used RIF Installer . | . . . . . . . Robots Hacked . | . . . . . . . Non-combat . | . . . . . . . Combat . | . . . . . . . Robot Hacks Applied . | . . . . . . . Relay Couplers Released 1 | . . . . . . 1 Machine Destruction 1 | . . . . . . 1 Fabnet Peak Effective % . | . . . . . . . Robots Rewired . | . . . . . . . Allies Hacked . | . . . . . . . Hacks Repelled . | . . . . . . . Allies | -11 -10 -10 -10 -9 -8 -7 -------- Run | Yrd Mat Min Exi Min Mat Fac Total Allies 4 | . . 4 . . . . Largest Group 4 | . . 4 4 3 1 . Highest-Rated Group 71 | . . 71 71 40 16 . Highest-Rated Ally 31 | . . 31 31 16 16 . Total Orders . | . . . . . . . Ally Attacks 63 | . . . . 58 5 . Total Damage 704 | . . . . 643 61 . Kills 13 | . . . . 10 3 . Allies Corrupted . | . . . . . . . Allies Melted . | . . . . . . . Intel | -11 -10 -10 -10 -9 -8 -7 ------- Run | Yrd Mat Min Exi Min Mat Fac Active Infowar (turns) 1295 | . . . . . 459 836 Cloaking 1047 | . . . . . 459 588 Jamming 248 | . . . . . . 248 Robot Analysis Total . | . . . . . . . Derelict Logs Recovered 2 | . . 2 . . . . Drone Launches . | . . . . . . . Drone Recoveries . | . . . . . . . Exploration | -11 -10 -10 -10 -9 -8 -7 ------------- Run | Yrd Mat Min Exi Min Mat Fac Turns Passed 5421 | 70 239 984 899 1832 460 937 Spaces Moved 2846 | 56 155 679 739 773 174 270 Core 62 | 8 . . . . . 54 Treads . | . . . . . . . Legs 2513 | . . 676 739 773 174 151 Wheels 206 | 48 155 3 . . . . Hover 65 | . . . . . . 65 Flight . | . . . . . . . Fastest Speed 50 | 50 100 100 120 120 190 50 Average Speed 133 | 98 100 119 120 135 190 189 Slowest Speed 500 | 100 100 120 120 260 190 500 Overloaded Moves . | . . . . . . . Propulsion Burnouts . | . . . . . . . Robots Hopped . | . . . . . . . Potential Cave-ins . | . . . . . . . Cave-ins Triggered . | . . . . . . . Exploration Rate (%) 50 | 4 28 99 93 98 24 6 Regions Visited 6 Branch Regions 3 Pre-discovered Areas 1 | . . 1 . . . . Known Exits Taken 1 | . . . . . 1 . Unknown Exits Taken 5 | 1 1 1 1 1 . . Scrap Searched 4 | . . 3 . 1 . . Spaces Dug . | . . . . . . . Terrain Destroyed 41 | . . 32 . 6 3 . Melee . | . . . . . . . Projectile 9 | . . . . 6 3 . AOE 32 | . . 32 . . . . Terrain Rammed . | . . . . . . . Walls Destroyed . | . . . . . . . Machines Disabled . | . . . . . . . Actions | -11 -10 -10 -10 -9 -8 -7 --------- Run | Yrd Mat Min Exi Min Mat Fac Total 4336 | 70 230 816 751 1504 292 673 Wait 1260 | . 58 99 11 686 100 306 Move 2840 | 55 154 678 738 772 173 270 Hop . | . . . . . . . Pick Up 39 | 9 7 7 1 5 5 5 Fast Attach 2 | . . . . 1 1 . Attach 26 | 6 3 2 . 2 4 9 Detach . | . . . . . . . Swap 7 | . . 3 . 3 1 . Drop 14 | . 2 6 1 3 2 . Fire 83 | . 6 21 . 31 6 19 Melee . | . . . . . . . Ram 64 | . . . . . . 64 Kick 1 | . . . . 1 . . Crush . | . . . . . . . Escape Stasis . | . . . . . . . Rewire . | . . . . . . . Trap . | . . . . . . . Miscellaneous . | . . . . . . . Route ------- -11/Scrapyard -10/Materials -10/Mines (discovered 4 exits: [*Mat x2] / *Exi / [*Sub]) -10/Exiles -9/Mines (discovered 2 exits: *Mat x2) -8/Materials -7/Factory History --------- Turn | Location | Event 7 | -11/Scrapyard | Discovered new exit (range 16) 71 | -11/Scrapyard | Entered Materials 299 | -10/Materials | Discovered new exit (range 12) 309 | -10/Materials | Build established: Mutant 310 | -10/Materials | Entered Mines 321 | -10/Mines | Met a Derelict bent on vengeance 372 | -10/Mines | Assembled infested the area 642 | -10/Mines | Discovered new exit (range 9) 645 | -10/Mines | Core integrity fell below 50% 649 | -10/Mines | Escorted by a lone wolf Derelict 669 | -10/Mines | Learned location of Storage (-8) 759 | -10/Mines | Found a damaged Exp. Sensor Array with a note attached 762 | -10/Mines | Found Prototype Device 812 | -10/Mines | Found a Scrap Suit stashed away for nefarious purposes 817 | -10/Mines | Found Scrap Suit 910 | -10/Mines | Discovered new exit (range 5) 1037 | -10/Mines | Assisted by bots powering up and referring to "LRC-V3" 1039 | -10/Mines | Learned Materials emergency access door positions 1070 | -10/Mines | Learned Materials stockpile data 1075 | -10/Mines | Discovered new exit (range 6) 1142 | -10/Mines | Discovered new exit (range 5) 1294 | -10/Mines | Entered Exiles 1294 | -10/Exiles | Accompanied by 4 allies 1330 | -10/Exiles | Met 8R-AWN 1357 | -10/Exiles | Met EX-HEX 1399 | -10/Exiles | Met EX-BIN 1416 | -10/Exiles | Aligned with FarCom system 1417 | -10/Exiles | Given EX-Vault access code 1454 | -10/Exiles | Opened EX-Vault 1467 | -10/Exiles | Found Cloak of Protection 1513 | -10/Exiles | Warned to stay clear of 0b10 Research branches 1597 | -10/Exiles | Met EX-DEC 1730 | -10/Exiles | Discovered new exit (range 11) 1865 | -10/Exiles | Visited The Gauntlet 2193 | -10/Exiles | Left Exiles lab with Cloak of Protection 2193 | -10/Exiles | Entered Mines 2193 | -9/Mines | Accompanied by 3 allies 2881 | -9/Mines | Received a Rocket Launcher from a helpful Derelict 2967 | -9/Mines | Found a hidden stash of uninstalled traps 2981 | -9/Mines | Discovered new exit (range 11) 3273 | -9/Mines | Met a Derelict who couldn't figure out how to use a Trap Extractor 3564 | -9/Mines | Discovered new exit (range 12) 4025 | -9/Mines | Entered Materials 4025 | -8/Materials | Accompanied by 1 ally 4025 | -8/Materials | Evolved 4 slots: Power x1, Propulsion x1, Utility x2 4467 | -8/Materials | Discovered new exit (range 3) 4469 | -8/Materials | Identified exit to Factory 4485 | -8/Materials | Entered Factory 4485 | -7/Factory | Evolved 2 slots: Power x1, Weapon x1 4491 | -7/Factory | Identified exit to DSF 4792 | -7/Factory | Build established: Scavenger-Skirmisher 5131 | -7/Factory | Lost 12 parts (3p3n1u5w) 5344 | -7/Factory | Build established: Mutant 5366 | -7/Factory | System corruption reached 10% 5371 | -7/Factory | Core integrity fell below 50% 5407 | -7/Factory | Core integrity fell below 20% 5422 | -7/Factory | Destroyed by P-60 Hacker with Shock Rifle Last Messages --------------- 05373_ Slammed into P-60 Hacker. 05373_ Hacking Suite destroyed. 05373_ System corrupted by crushing effect (+2). 05374_ Slammed into P-60 Hacker. 05386_ Transmission Jammer broken. 05386_ Destabilizing: Short circuit. 05387_ Slammed into P-60 Hacker. 05389_ System corrupted: Matter fused (-9). 05389_ Acquired 3 matter. 05389_ Slammed into P-60 Hacker. 05391_ Sml. Storage Unit destroyed. 05391_ Slammed into P-60 Hacker. 05397_ P-60 Hacker resets W-25 Informer, system corruption cleaned. 05397_ Slammed into P-60 Hacker. 05398_ Broken Transmission Jammer destroyed. 05399_ Slammed into P-60 Hacker. 05404_ AS8:BRTHTE2Q/3RF A# 05404_ Slammed into P-60 Hacker. 05413_ Destabilizing: System corrupted (+1). 05414_ Slammed into P-60 Hacker. Map ----- +----------------------------------------------------+ | ???????????????????????????????????????? | | ???????????????????????????????????????? | | ???????????????????????????????????????? | | ???????????????????????????????????????? | | ???????????????????????????????????????? | | ???????????????????????????????????????? | | ???????????????????????????????????????? | | ???????????????????????????????????????? | | ???????????????????????????????????????? | | ???????????????????????????????????????? | | ???????????????????????????????????????? | | ???????????????????????????????????????? | | ???????????????????????????????????????? | | ???????????????????????????????????????? | | ???????????????????????????????????????? | | ???????????????????????????????????????? | | ???????????????????????????????????????? | | ???????????????????????????????????????? | | ???????????????????????????????????????? | | ???????????????????????????????????????? | | ???????????????????????????????????????? | | ???????????????????????????????????????? | | ???????????????????????????????????????? | | ???????????????????????????????????????? | | ???????????#######?????????????????????? | | ???????????# @p#?????????????????????? | | ???????????# %%% #?????????????????????? | | ##?#########w %%%#?????????????????????? | | # # %% #?????????????????????? | | # # %%##????????????????????? | | # """ # %%T#????????????????????? | | # """"" # %%% #????????????????????? | | # """"" # %%%##????????????????????? | | # # %#?????????????????????? | | # # #?????????????????????? | | # + #?????????????????????? | | # # #?????????????????????? | | #"" # #?????????????????????? | | #"" # #?????????????????????? | | #"T # #?????????????????????? | | #"" # ########??????????????? | | #"" # #??????????????? | | # # ##############?? | | ############ """"" #! #?? | | ???????????# "" F" # #?? | | ???????????# "" "" # #?? | | ???????????# # #?? | | ???????????# # #?? | | ???????????# """ """ # #?? | | ???????????# """ """ + #?? | +----------------------------------------------------+ Best States ------------- Heat Dissipation 34 Energy Generation 28 Energy Capacity 250 Matter Stores 390 Matter Capacity 450 Sight Range 16 Terrain Scan Density 10 Jamming Range 12 Cloak Strength 5 Evasion (%) 55 Targeting Accuracy 5 Offensive Hacking 10 Item Schematics ----------------- None Robot Schematics ------------------ None Fabricated ------------ Nothing Repaired ---------- Nothing Studied --------- None Alien Tech Used ----------------- None Achievements -------------- Sixth Sense Challenges ------------ None Game ------ Seed OvertunedExpertMallet Manual? 0 Play Time 00:38:33 Cumulative 20.2 hours Start 2025.12.18 @ 22:28:51 End 2025.12.18 @ 23:09:30 Sessions 1 Manual Loads 0 Difficulty Rogue Special Mode None Game No. 46 Rogue 46 Adventurer 0 Explorer 0 Win Type - Total 0 Types 0/0/0/0/0/0/0/0/0/0 Lore% 29 Gallery% 18 Achievement% 13 Wizard Run 0 Options --------- Layout 1 ASCII 0 Keyboard 0 Movement Mouse Keybinds 0 Fullscreen 1 Font 32/SmallcapsGlow Map View 77x35 Zoom Use 0% Tactical HUD 1 Map Filters NONE Filters NONE Steam 1 RUN: 7dcdd3e1-cbf5-4bb2-85db-418f96c2e350